bitfinex/quotes_ETHUSD_20230902
["timestamp","ask_amount","ask_price","bid_price","bid_amount"]
[1693679345157,2.1083,1631.1,1630.8,3.08185404]
[1693679347074,2.1083,1631.1,1630.9,3.0]
[1693679347442,2.74639007,1631.1,1630.9,3.0]
[1693679347646,3.27354259,1631.1,1630.9,3.0]
[1693679347847,2.63545252,1631.1,1630.9,3.0]
[1693679349788,3.27354259,1631.1,1630.9,3.0]
[1693679354349,1.568,1631.0,1630.9,3.0]
[1693679357685,3.27124561,1631.0,1630.9,3.0]
[1693679359353,3.95762893,1631.0,1630.9,3.0]
[1693679360186,3.95762893,1631.0,1630.7,4.60053818]
[1693679360358,1.568,1630.9,1630.7,7.68239222]
[1693679360749,4.94507339,1631.0,1630.7,7.68239222]
[1693679362295,5.32256039,1631.0,1630.7,7.68239222]
[1693679363696,5.59331217,1631.0,1630.7,7.68239222]
[1693679363864,4.63617707,1631.0,1630.7,7.68239222]
[1693679369307,1.568,1630.9,1630.7,7.68239222]
[1693679369792,3.7562,1630.9,1630.7,7.68239222]
[1693679371163,2.1882,1630.9,1630.7,7.68239222]
[1693679375011,0.52105807,1631.0,1630.8,3.08185404]
[1693679375188,0.02850878,1631.0,1630.9,3.0]
[1693679375379,2.6914259,1631.0,1630.9,3.0]
[1693679381016,2.6914259,1631.0,1630.9,6.08185404]
[1693679381520,0.02850878,1631.0,1630.9,6.08185404]
[1693679381707,0.02850878,1631.0,1630.9,6.69003944]
[1693679386122,0.02850878,1631.0,1630.9,6.08185404]
[1693679387716,0.02850878,1631.0,1630.9,6.57661896]
[1693679387924,1.73277335,1631.0,1630.9,3.49476492]
[1693679388107,0.66767401,1631.0,1630.9,0.49476492]
[1693679388421,3.33049012,1631.0,1630.8,3.0]
[1693679388624,2.83147401,1631.0,1630.8,6.08185404]
[1693679393927,2.83147401,1631.0,1630.8,3.0]
[1693679402838,2.83147401,1631.0,1630.7,4.60053818]
[1693679403044,3.78860911,1631.0,1630.7,6.269821]
[1693679403208,0.63916523,1630.8,1630.7,0.18796696]
[1693679403408,4.76210261,1630.8,1630.7,0.18796696]
[1693679403607,6.4642979,1630.8,1630.7,0.18796696]
[1693679404210,5.82852778,1630.8,1630.3,2.89471405]
[1693679404417,2.0688,1630.7,1630.4,3.08185404]
[1693679405646,2.0688,1630.7,1630.5,3.0]
[1693679407326,2.20690117,1630.8,1630.5,6.08185404]
[1693679407525,4.32470117,1630.8,1630.5,6.08185404]
[1693679409345,3.6858,1630.8,1630.5,6.08185404]
[1693679409914,4.32470117,1630.8,1630.5,6.08185404]
[1693679410842,5.05962646,1630.8,1630.5,6.08185404]
[1693679411215,4.42072529,1630.8,1630.5,6.08185404]
[1693679412856,1.568,1630.6,1630.5,3.0]
[1693679413040,1.568,1630.6,1630.3,4.69094695]
[1693679413238,1.568,1630.5,1630.3,4.69094695]
[1693679413422,3.757,1630.6,1630.3,4.69094695]
[1693679413619,1.9437,1630.5,1630.3,4.69094695]
[1693679413965,1.9437,1630.5,1630.3,1.69094695]
[1693679414447,1.568,1630.4,1630.3,1.69094695]
[1693679414956,1.568,1630.4,1630.3,4.69094695]
[1693679417070,4.39590117,1630.6,1630.3,7.77280099]
[1693679417240,3.757,1630.6,1630.3,8.64480139]
[1693679417753,2.189,1630.6,1630.4,3.08185404]
[1693679417960,4.15750117,1630.7,1630.5,3.0]
[1693679418159,6.35820117,1630.7,1630.5,3.0]
[1693679418347,2.20690117,1630.8,1630.5,6.08185404]
[1693679418548,4.40760117,1630.8,1630.5,6.69003944]
[1693679418763,5.19505293,1630.9,1630.6,3.08185404]
[1693679418942,2.20690117,1630.9,1630.7,3.0]
[1693679419543,1.568,1630.8,1630.7,3.0]
[1693679419743,1.568,1630.8,1630.4,3.0]
[1693679419939,1.568,1630.7,1630.4,6.63814878]
[1693679420181,1.568,1630.7,1630.4,6.08185404]
[1693679421436,1.568,1630.7,1630.4,3.0]
[1693679421736,1.568,1630.6,1630.4,3.0]
[1693679425683,1.568,1630.6,1630.3,4.69094695]
[1693679425986,1.568,1630.6,1630.3,7.77280099]
[1693679427356,3.6165,1630.6,1630.3,7.77280099]
[1693679428335,3.6165,1630.6,1630.3,9.14387139]
[1693679431251,3.6165,1630.6,1630.3,7.77280099]
[1693679432244,4.25540117,1630.6,1630.3,7.77280099]
[1693679432574,3.6165,1630.6,1630.3,7.77280099]
[1693679434468,4.25540117,1630.6,1630.3,7.77280099]
[1693679436272,2.0485,1630.6,1630.3,7.77280099]
[1693679436579,2.0485,1630.6,1630.3,8.84387139]
[1693679439080,0.63782123,1630.7,1630.4,3.08185404]
[1693679439284,1.7031256,1630.7,1630.5,3.0]
[1693679439485,1.7031256,1630.7,1630.5,6.08185404]
[1693679441190,3.6267,1630.8,1630.5,6.08185404]
[1693679441391,1.70340073,1630.7,1630.5,6.08185404]
[1693679441558,1.70340073,1630.7,1630.6,3.08185404]
[1693679441758,1.70340073,1630.7,1630.6,6.08185404]
[1693679446287,3.16322863,1630.8,1630.6,6.08185404]
[1693679446489,2.20609145,1630.8,1630.7,3.0]
[1693679446697,4.86933862,1630.8,1630.7,3.0]
[1693679453098,3.30133862,1630.8,1630.7,3.0]
[1693679453398,1.70339032,1630.8,1630.7,3.0]
[1693679454898,3.30132976,1630.8,1630.7,3.0]
[1693679455501,4.25846694,1630.8,1630.7,3.0]
[1693679456260,3.30132976,1630.8,1630.7,3.0]
[1693679458394,4.86932976,1630.8,1630.7,3.0]
[1693679458597,5.82646694,1630.8,1630.7,3.0]
[1693679459798,4.86932976,1630.8,1630.7,3.0]
[1693679460391,5.82646694,1630.8,1630.7,3.0]
[1693679462096,5.18837549,1630.8,1630.7,3.0]
[1693679462303,6.04609133,1630.8,1630.7,3.0]
[1693679462599,10.09115175,1630.8,1630.5,0.49817173]
[1693679462827,0.63876531,1630.6,1630.5,3.08185404]
[1693679462970,3.30200362,1630.6,1630.5,6.08185404]
[1693679465269,3.30200362,1630.6,1630.5,3.0]
[1693679465470,6.10311972,1630.6,1630.3,3.58206014]
[1693679465665,4.87006531,1630.5,1630.3,3.66391418]
[1693679465872,4.247927,1630.5,1630.4,3.0]
[1693679466211,6.91165843,1630.5,1630.4,3.0]
[1693679466375,8.1226607,1630.5,1630.3,0.58206014]
[1693679466612,1.568,1630.4,1630.3,0.58206014]
[1693679469820,1.57117069,1630.4,1630.3,0.58206014]
[1693679470144,1.52117069,1630.4,1630.3,0.58206014]
[1693679473739,0.00317069,1630.4,1630.3,0.58206014]
[1693679475150,0.00317069,1630.4,1630.3,3.66391418]
[1693679475337,0.00317069,1630.4,1630.3,7.0403056]
[1693679475831,0.638827,1630.8,1630.3,10.0403056]
[1693679476145,1.70415179,1630.8,1630.4,6.08185404]
[1693679476746,0.638827,1630.8,1630.4,6.08185404]
[1693679476931,0.638827,1630.8,1630.5,0.6081854]
[1693679477124,0.638827,1630.8,1630.6,3.08185404]
[1693679477433,0.638827,1630.8,1630.7,3.0]
[1693679477613,0.638827,1630.8,1630.7,6.08185404]
[1693679477614,0.63853753,1630.8,1630.7,6.08185404]
[1693679479447,1.59634383,1630.9,1630.7,6.08185404]
[1693679479647,4.25958342,1630.9,1630.7,6.08185404]
[1693679479845,1.59634383,1630.9,1630.7,6.08185404]
[1693679480051,4.25958292,1630.9,1630.7,6.08185404]
[1693679480215,1.59634383,1630.9,1630.7,6.08185404]
[1693679480415,4.25957534,1630.9,1630.7,6.08185404]
[1693679480617,1.59634383,1630.9,1630.7,6.08185404]
[1693679480915,4.25958245,1630.9,1630.7,6.08185404]
[1693679481249,1.06530271,1630.8,1630.7,6.08185404]
[1693679481438,1.59634383,1630.9,1630.7,6.08185404]
[1693679481638,4.25958579,1630.9,1630.7,6.08185404]
[1693679482654,5.82758579,1630.9,1630.7,6.08185404]
[1693679482823,3.16434383,1630.9,1630.7,6.08185404]
[1693679483359,1.70384685,1630.8,1630.7,6.08185404]
[1693679484251,1.70384685,1630.8,1630.7,6.03185404]
[1693679485148,1.59634383,1630.9,1630.7,6.03185404]
[1693679485458,4.25957969,1630.9,1630.7,6.03185404]
[1693679485663,0.63853753,1630.9,1630.7,6.03185404]
[1693679485850,3.30175148,1630.9,1630.7,6.03185404]
[1693679486556,7.77979015,1631.0,1630.8,3.08185404]
[1693679486557,0.66704631,1631.0,1630.8,3.08185404]
[1693679486784,0.66704631,1631.0,1630.9,3.0]
[1693679487060,3.33007149,1631.0,1630.9,3.0]
[1693679489637,3.33006149,1631.0,1630.9,3.0]
[1693679490142,1.73225638,1631.0,1630.9,3.0]
[1693679495478,1.09371885,1631.0,1630.9,3.0]
[1693679495846,1.73225638,1631.0,1630.9,3.0]
[1693679496259,0.02850878,1631.0,1630.9,6.08185404]
[1693679503585,0.02850878,1631.0,1630.9,6.69003944]
[1693679511465,0.02850878,1631.0,1630.9,9.69003944]
[1693679514118,0.02850878,1631.0,1630.9,11.25803944]
[1693679516505,0.02850878,1631.0,1630.9,11.75912189]
[1693679517278,0.02850878,1631.0,1630.9,12.23912189]
[1693679518706,0.02850878,1631.0,1630.9,12.43195189]
[1693679522381,0.02850878,1631.0,1630.9,13.35466655]
[1693679523005,0.1717557,1631.1,1630.9,13.35466655]
[1693679523208,0.1717557,1631.1,1631.0,4.41732069]
[1693679523602,0.1717557,1631.1,1631.0,7.41732069]
[1693679525483,1.23665043,1631.1,1631.0,7.41732069]
[1693679525689,0.9578063,1631.2,1631.1,3.0]
[1693679525902,3.62004651,1631.2,1631.1,8.44291639]
[1693679526201,3.62004651,1631.2,1631.1,9.72075469]
[1693679531535,2.66224021,1631.2,1631.1,9.72075469]
[1693679534528,1.06489608,1631.2,1631.1,9.72075469]
[1693679535510,3.1631063,1631.3,1631.1,9.72075469]
[1693679535833,3.80157391,1631.3,1631.2,6.08185404]
[1693679536034,5.39891062,1631.3,1631.2,6.08185404]
[1693679536235,6.46380176,1631.3,1631.2,6.08185404]
[1693679539041,5.50599546,1631.3,1631.2,7.05392951]
[1693679539405,3.90865875,1631.3,1631.2,7.05392951]
[1693679540410,2.2053,1631.3,1631.2,7.05392951]
[1693679540630,3.90861192,1631.3,1631.2,7.05392951]
[1693679543729,2.2053,1631.3,1631.2,7.05392951]
[1693679544316,3.27014303,1631.3,1631.2,7.05392951]
[1693679544516,2.2053,1631.3,1631.2,7.05392951]
[1693679547645,1.70711808,1631.3,1631.2,7.05392951]
[1693679547843,1.50415252,1631.3,1631.2,7.05392951]
[1693679549841,1.50415252,1631.3,1631.2,7.23762775]
[1693679552068,1.50758328,1631.3,1631.2,7.23762775]
[1693679553228,1.50758328,1631.3,1631.2,8.15014659]
[1693679554362,0.00343076,1631.3,1631.2,8.15014659]
[1693679554861,2.72596761,1631.4,1631.3,2.36106235]
[1693679555036,3.79075504,1631.4,1631.3,5.44291639]
[1693679555428,3.79075504,1631.4,1631.3,8.44291639]
[1693679555857,3.79419407,1631.4,1631.3,6.08185404]
[1693679556061,4.26939411,1631.4,1631.3,6.08185404]
[1693679556360,7.75393189,1631.4,1631.3,6.08185404]
[1693679557343,7.27873185,1631.4,1631.3,6.08185404]
[1693679561632,7.91891905,1631.4,1631.3,6.08185404]
[1693679562460,6.96111275,1631.4,1631.3,6.08185404]
[1693679563552,5.39311275,1631.4,1631.3,6.08185404]
[1693679570374,5.39311275,1631.4,1631.3,6.56166564]
[1693679577879,1.70841366,1631.4,1631.3,7.2178322]
[1693679578055,0.00343903,1631.4,1631.3,7.2178322]
[1693679578982,5.6406935,1631.6,1631.3,7.2178322]
[1693679579180,5.6406935,1631.6,1631.4,6.08185404]
[1693679579668,3.6657935,1631.6,1631.4,6.08185404]
[1693679579857,0.0033169,1631.5,1631.4,6.80363726]
[1693679588865,1.70477266,1631.6,1631.4,6.80363726]
[1693679589493,3.57049118,1631.7,1631.4,9.16469961]
[1693679589882,0.00321364,1631.6,1631.4,9.16469961]
[1693679599880,4.55139647,1631.8,1631.4,9.16469961]
[1693679600331,4.55139647,1631.8,1631.5,0.91646996]
[1693679600485,4.55139647,1631.8,1631.6,3.08185404]
[1693679600703,4.55139647,1631.8,1631.7,3.0]
[1693679600912,5.26018114,1631.8,1631.7,3.0]
[1693679601112,5.26018114,1631.8,1631.7,6.08185404]
[1693679602811,5.26340568,1631.8,1631.7,6.08185404]
[1693679607529,3.66639488,1631.8,1631.7,6.08185404]
[1693679608541,5.26339158,1631.8,1631.7,6.08185404]
[1693679613163,5.26339158,1631.8,1631.7,6.56339705]
[1693679614914,1.96172454,1631.8,1631.7,6.56339705]
[1693679615463,3.52972454,1631.8,1631.7,6.56339705]
[1693679616241,5.23433572,1631.8,1631.7,6.56339705]
[1693679616439,4.59433671,1631.8,1631.7,6.56339705]
[1693679616644,5.23433318,1631.8,1631.7,6.56339705]
[1693679618472,3.52972454,1631.8,1631.7,6.56339705]
[1693679618675,5.23432089,1631.8,1631.7,6.56339705]
[1693679621774,6.83123017,1631.8,1631.7,6.56339705]
[1693679622081,6.83122369,1631.8,1631.7,6.56339705]
[1693679622370,3.27582089,1631.8,1631.7,7.21973675]
[1693679622581,0.00322454,1631.8,1631.7,7.21973675]
[1693679624958,2.65099647,1632.0,1631.8,2.36106235]
[1693679625158,2.65099647,1632.0,1631.9,3.08185404]
[1693679625361,5.31220687,1632.0,1631.9,6.08185404]
[1693679626193,6.27220158,1632.0,1631.9,6.08185404]
[1693679626689,5.31220687,1632.0,1631.9,6.08185404]
[1693679626894,6.27220158,1632.0,1631.9,6.08185404]
[1693679627279,4.26120158,1632.0,1631.9,6.08185404]
[1693679627485,4.26120158,1632.0,1631.9,6.92614568]
[1693679628697,3.30120687,1632.0,1631.9,6.92614568]
[1693679628994,4.26120158,1632.0,1631.9,6.92614568]
[1693679629295,4.25994018,1632.0,1631.9,6.92614568]
[1693679629791,3.30071182,1632.0,1631.9,6.92614568]
[1693679629994,4.25994018,1632.0,1631.9,6.92614568]
[1693679630312,4.86871182,1632.0,1631.9,6.08185404]
[1693679630495,5.82794018,1632.0,1631.9,6.08185404]
[1693679632737,5.82785086,1632.0,1631.9,6.08185404]
[1693679633883,7.39585086,1632.0,1631.9,3.0]
[1693679634117,6.7564179,1632.0,1631.7,3.48154301]
[1693679634400,4.25982606,1631.9,1631.8,3.08185404]
[1693679634721,6.83777661,1631.9,1631.8,6.08185404]
[1693679637622,5.24101554,1631.9,1631.8,6.08185404]
[1693679639094,6.83788289,1631.9,1631.8,6.08185404]
[1693679646526,6.83788289,1631.9,1631.8,6.56400806]
[1693679651945,3.16655761,1632.0,1631.8,6.56400806]
[1693679652099,2.20740816,1632.0,1631.9,3.0]
[1693679652303,3.27189227,1632.0,1631.9,6.08185404]
[1693679652520,4.86861449,1632.0,1631.9,6.08185404]
[1693679652933,3.27189227,1632.0,1631.9,6.08185404]
[1693679654838,3.27189227,1632.0,1631.9,6.80389493]
[1693679655739,1.568,1632.0,1631.9,6.80389493]
[1693679659644,3.64495761,1632.1,1631.9,6.80389493]
[1693679659850,3.64495761,1632.1,1631.9,6.08185404]
[1693679659851,1.568,1632.0,1631.9,6.08185404]
[1693679660816,4.83986511,1632.0,1631.9,6.08185404]
[1693679661011,6.43657562,1632.0,1631.9,6.08185404]
[1693679669472,4.86857562,1632.0,1631.9,6.08185404]
[1693679676181,6.43657562,1632.0,1631.9,6.08185404]
[1693679677955,6.43657562,1632.0,1631.9,3.08185404]
[1693679678491,7.39572507,1632.0,1631.9,3.08185404]
[1693679678790,4.86857562,1632.0,1631.9,3.08185404]
[1693679679189,4.86857562,1632.0,1631.9,3.43825485]
[1693679679487,1.568,1632.0,1631.9,6.08185404]
[1693679681163,3.136,1632.0,1631.9,6.08185404]
[1693679681369,4.83986275,1632.0,1631.9,3.08185404]
[1693679681674,6.43655133,1632.0,1631.9,3.08185404]
[1693679681880,7.44923517,1632.0,1631.9,3.08185404]
[1693679682259,6.43655133,1632.0,1631.9,3.08185404]
[1693679686091,3.30055133,1632.0,1631.9,3.08185404]
[1693679686273,6.43655133,1632.0,1631.9,3.08185404]
[1693679689706,3.30055133,1632.0,1631.9,3.08185404]
[1693679690004,6.43655133,1632.0,1631.9,3.08185404]
[1693679691689,7.39570078,1632.0,1631.9,3.08185404]
[1693679695512,6.75629262,1632.0,1631.9,3.08185404]
[1693679698667,6.75629262,1632.0,1631.9,3.43825485]
[1693679698866,3.27340653,1632.0,1631.9,6.43825485]
[1693679706902,2.63245459,1632.0,1631.9,6.43825485]
[1693679707432,3.27340653,1632.0,1631.9,6.43825485]
[1693679707756,1.568,1632.0,1631.9,6.43825485]
[1693679721879,2.20869476,1632.1,1631.9,6.43825485]
[1693679722079,1.568,1632.2,1632.1,2.36106235]
[1693679722251,1.568,1632.2,1632.1,5.44291639]
[1693679722453,1.568,1632.2,1632.1,8.44291639]
[1693679731263,1.568,1632.2,1632.1,8.63560639]
[1693679731465,1.568,1632.2,1632.1,9.56354958]
[1693679734671,1.568,1632.2,1632.1,10.0613097]
[1693679735307,1.568,1632.3,1632.1,10.0613097]
[1693679735606,1.568,1632.3,1632.2,6.08185404]
[1693679737481,2.0626,1632.4,1632.3,2.36106235]
[1693679737680,2.0626,1632.4,1632.3,5.44291639]
[1693679737993,2.0626,1632.4,1632.3,8.44291639]
[1693679742824,3.76666139,1632.4,1632.3,8.44291639]
[1693679744791,5.36295012,1632.4,1632.3,8.44291639]
[1693679751735,5.36295012,1632.4,1632.3,3.0]
[1693679751736,6.13330623,1632.4,1632.3,3.0]
[1693679751913,9.89727513,1632.4,1632.1,0.19269]
[1693679752092,4.26136033,1632.3,1632.2,3.08185404]
[1693679754553,3.3008209,1632.3,1632.2,3.08185404]
[1693679755242,4.26136033,1632.3,1632.2,3.08185404]
[1693679755641,3.3008209,1632.3,1632.2,3.08185404]
[1693679756452,3.30127277,1632.3,1632.2,3.08185404]
[1693679759751,4.26205067,1632.3,1632.2,3.08185404]
[1693679761207,3.27282027,1632.3,1632.2,3.08185404]
[1693679764109,7.10025402,1632.3,1632.1,0.19269]
[1693679764322,6.42478144,1632.2,1632.1,0.19269]
[1693679764505,7.70581864,1632.2,1632.1,0.19269]
[1693679764710,6.42478144,1632.2,1632.1,0.19269]
[1693679764912,8.89671214,1632.2,1632.1,0.19269]
[1693679765148,7.61567494,1632.2,1632.1,0.19269]
[1693679765440,7.61567494,1632.2,1631.7,0.48064333]
[1693679765741,7.61567494,1632.2,1631.8,3.08185404]
[1693679765742,7.23654433,1632.1,1631.8,3.08185404]
[1693679765924,4.57572523,1632.1,1631.8,3.08185404]
[1693679767356,0.64082523,1632.1,1631.8,5.44291639]
[1693679767562,3.16960313,1632.2,1631.9,3.0]
[1693679767775,1.70518511,1632.1,1632.0,3.08185404]
[1693679767954,7.07260313,1632.2,1632.0,3.08185404]
[1693679768128,1.568,1632.1,1632.0,3.08185404]
[1693679778037,0.64099569,1632.2,1632.0,3.69003944]
[1693679778239,1.70532529,1632.2,1632.0,3.69003944]
[1693679778841,3.27332529,1632.2,1632.0,3.69003944]
[1693679779042,2.20899569,1632.2,1632.0,3.69003944]
[1693679780667,2.20899569,1632.2,1632.0,3.08185404]
[1693679783375,2.80524248,1632.2,1632.0,3.08185404]
[1693679783573,2.16424679,1632.1,1632.0,3.08185404]
[1693679788585,3.86963286,1632.1,1632.0,3.08185404]
[1693679789679,3.27338607,1632.1,1632.0,3.08185404]
[1693679793598,4.8699668,1632.1,1632.0,3.08185404]
[1693679795156,3.27338607,1632.1,1632.0,3.08185404]
[1693679796674,4.86993522,1632.1,1632.0,3.08185404]
[1693679804431,5.83142875,1632.1,1632.0,3.08185404]
[1693679806464,1.568,1632.1,1632.0,3.08185404]
[1693679806643,5.832091,1632.1,1632.0,3.08185404]
[1693679809775,5.19083402,1632.1,1632.0,3.08185404]
[1693679814157,5.19083402,1632.1,1632.0,3.57294702]
[1693679814459,5.19083402,1632.1,1632.0,3.08185404]
[1693679827297,5.19083402,1632.1,1632.0,6.08185404]
[1693679827683,3.62283402,1632.1,1632.0,6.08185404]
[1693679827998,3.30275744,1632.1,1632.0,6.99003944]
[1693679829378,1.70618831,1632.1,1632.0,6.99003944]
[1693679831669,1.70618831,1632.1,1632.0,7.48971456]
[1693679832073,0.64180889,1632.1,1632.0,7.48971456]
[1693679832290,1.60369436,1632.2,1632.0,10.48971456]
[1693679832485,1.60369436,1632.2,1632.1,1.04897146]
[1693679832685,5.83240901,1632.2,1632.1,4.1308255]
[1693679832893,5.83240901,1632.2,1632.1,3.08185404]
[1693679833403,4.87052354,1632.2,1632.1,3.08185404]
[1693679835272,3.30252354,1632.2,1632.1,3.08185404]
[1693679837206,4.87052354,1632.2,1632.1,3.08185404]
[1693679839203,3.30252354,1632.2,1632.1,3.74000696]
[1693679841412,3.30252354,1632.2,1632.1,3.08185404]
[1693679842504,1.70609475,1632.2,1632.1,3.08185404]
[1693679848966,1.70609475,1632.2,1632.1,6.08185404]
[1693679849256,0.64180889,1632.3,1632.1,6.27454404]
[1693679849466,0.64180889,1632.3,1632.2,6.27453404]
[1693679849634,2.66788763,1632.4,1632.2,7.20198744]
[1693679849836,1.06419327,1632.3,1632.2,4.1201334]
[1693679850056,2.66788763,1632.4,1632.2,3.19268]
[1693679850680,2.66788763,1632.4,1632.2,0.19268]
[1693679851354,2.66788763,1632.4,1632.3,3.08185404]
[1693679851564,4.26416818,1632.4,1632.3,3.08185404]
[1693679853179,3.30228271,1632.4,1632.3,3.08185404]
[1693679853339,3.30228271,1632.4,1632.3,3.40930744]
[1693679853789,3.30228271,1632.4,1632.3,6.40930744]
[1693679855796,1.70600216,1632.4,1632.3,6.40930744]
[1693679856845,1.70469436,1632.5,1632.3,6.40930744]
[1693679857051,0.74280889,1632.5,1632.4,3.08185404]
[1693679857359,0.101,1632.5,1632.4,3.72278478]
[1693679857987,0.101,1632.5,1632.4,6.72278478]
[1693679858194,0.101,1632.5,1632.4,9.08384713]
[1693679858548,0.101,1632.5,1632.4,9.27649713]
[1693679863272,0.101,1632.5,1632.4,9.46130651]
[1693679868315,0.101,1632.5,1632.4,8.82037577]
[1693679868316,1.669,1632.5,1632.4,8.82037577]
[1693679868524,0.101,1632.5,1632.4,8.82037577]
[1693679872311,1.8068495,1632.5,1632.4,8.82037577]
[1693679872675,0.101,1632.5,1632.4,8.82037577]
[1693679872872,0.101,1632.5,1632.4,8.63556639]
[1693679873078,0.101,1632.5,1632.4,9.54903356]
[1693679874602,2.33886558,1632.5,1632.4,6.27450404]
[1693679874829,5.93278884,1632.5,1632.4,6.27450404]
[1693679875012,4.97090337,1632.5,1632.4,6.27450404]
[1693679876180,5.93278884,1632.5,1632.4,6.27450404]
[1693679876618,4.97090337,1632.5,1632.4,6.27450404]
[1693679877320,5.93278884,1632.5,1632.4,6.27450404]
[1693679878819,4.97090337,1632.5,1632.4,6.27450404]
[1693679879221,5.80282368,1632.5,1632.4,6.27450404]
[1693679879434,6.76470915,1632.5,1632.4,3.27450404]
[1693679879579,7.69090026,1632.5,1632.4,3.27450404]
[1693679879773,8.28708496,1632.5,1632.4,3.27450404]
[1693679880725,8.28708496,1632.5,1632.4,3.08185404]
[1693679881014,8.28708496,1632.5,1632.4,6.08185404]
[1693679883077,7.69090026,1632.5,1632.4,6.08185404]
[1693679883332,6.85897995,1632.5,1632.4,6.08185404]
[1693679884301,5.93129122,1632.5,1632.4,6.08185404]
[1693679884589,5.93134554,1632.5,1632.4,3.08185404]
[1693679885428,4.96946007,1632.5,1632.4,3.08185404]
[1693679886132,5.93134554,1632.5,1632.4,3.08185404]
[1693679886289,4.96946007,1632.5,1632.4,3.08185404]
[1693679886489,1.80540338,1632.5,1632.4,3.08185404]
[1693679886690,0.101,1632.5,1632.4,6.62614568]
[1693679902032,0.101,1632.5,1632.4,9.72614568]
[1693679909059,1.669,1632.5,1632.4,9.18185404]
[1693679914349,0.101,1632.5,1632.4,9.18185404]
[1693679920738,1.669,1632.5,1632.4,9.18185404]
[1693679925170,2.73307885,1632.5,1632.4,9.18185404]
[1693679925946,3.37344444,1632.5,1632.4,9.18185404]
[1693679929184,4.02774743,1632.5,1632.4,9.18185404]
[1693679929481,7.51347545,1632.5,1632.4,3.1]
[1693679930452,8.79598941,1632.5,1632.4,3.1]
[1693679930707,10.60143337,1632.5,1632.4,3.1]
[1693679935524,9.43458684,1632.5,1632.4,3.1]
[1693679937885,9.91458684,1632.5,1632.4,3.1]
[1693679938624,8.63207288,1632.5,1632.4,3.1]
[1693679941646,9.91458684,1632.5,1632.4,3.1]
[1693679945297,11.08152109,1632.5,1632.4,3.1]
[1693679947712,11.08152109,1632.5,1632.4,2.4614507]
[1693679950648,12.68466354,1632.5,1632.4,2.4614507]
[1693679953103,11.40214958,1632.5,1632.4,2.4614507]
[1693679953308,12.68390188,1632.5,1632.4,2.4614507]
[1693679953607,11.40214958,1632.5,1632.4,2.4614507]
[1693679959163,10.6361867,1632.5,1632.4,2.4614507]
[1693679959352,8.37874126,1632.5,1632.4,2.4614507]
[1693679960018,9.94674126,1632.5,1632.4,2.4614507]
[1693679960823,8.37874126,1632.5,1632.4,5.54330474]
[1693679961019,1.70414245,1632.6,1632.4,8.54330474]
[1693679961020,1.06261748,1632.6,1632.4,8.54330474]
[1693679961329,1.06261748,1632.7,1632.5,3.08185404]
[1693679961669,1.06261748,1632.7,1632.6,0.3081854]
[1693679961978,2.63061748,1632.7,1632.6,3.39003944]
[1693679964273,2.63061748,1632.7,1632.6,6.39003944]
[1693679965669,1.669,1632.7,1632.6,6.39003944]
[1693679967177,0.101,1632.7,1632.6,6.39003944]
[1693679970709,0.101,1632.7,1632.6,8.75110179]
[1693679974850,0.101,1632.7,1632.6,8.94373179]
[1693679981827,0.101,1632.7,1632.6,9.84484186]
[1693679982224,0.101,1632.7,1632.6,10.33053094]
[1693679984643,0.101,1632.7,1632.6,9.42942087]
[1693679994412,0.74187491,1632.7,1632.6,8.79109167]
[1693679994845,1.80569656,1632.7,1632.6,8.79109167]
[1693679995154,0.101,1632.7,1632.6,8.79109167]
[1693680000117,1.16479546,1632.7,1632.6,8.79109167]
[1693680000317,0.101,1632.7,1632.6,9.83133394]
[1693680000539,0.101,1632.7,1632.6,8.79109167]
[1693680000730,1.8056723,1632.7,1632.6,8.79109167]
[1693680001673,3.72217173,1632.7,1632.6,8.79109167]
[1693680002465,4.36242153,1632.7,1632.6,8.79109167]
[1693680002780,3.72217173,1632.7,1632.6,8.79109167]
[1693680004304,8.62122979,1632.7,1632.6,8.79109167]
[1693680006669,10.22437224,1632.7,1632.6,8.79109167]
[1693680006883,8.94233512,1632.7,1632.6,6.43002932]
[1693680007260,8.94233512,1632.7,1632.6,5.94434024]
[1693680011382,8.94233512,1632.7,1632.6,2.94434024]
[1693680011583,9.26296361,1632.7,1632.6,1.61671427]
[1693680012499,7.33919267,1632.7,1632.4,2.4614507]
[1693680012799,2.24405273,1632.5,1632.4,5.4614507]
[1693680012969,6.00805582,1632.5,1632.4,5.4614507]
[1693680013502,4.84150135,1632.5,1632.4,2.4614507]
[1693680013704,6.00804225,1632.5,1632.4,2.4614507]
[1693680013877,4.84153824,1632.5,1632.4,2.4614507]
[1693680014077,5.85518728,1632.5,1632.4,5.54330474]
[1693680014285,8.58970502,1632.5,1632.4,5.54330474]
[1693680014483,10.19260026,1632.5,1632.4,5.54330474]
[1693680014698,8.58970502,1632.5,1632.4,5.54330474]
[1693680015671,7.4227236,1632.5,1632.4,5.54330474]
[1693680016886,6.20239741,1632.5,1632.4,5.54330474]
[1693680018135,6.84286941,1632.5,1632.4,5.54330474]
[1693680018675,5.88154158,1632.5,1632.4,5.54330474]
[1693680019181,6.20239741,1632.5,1632.4,2.4614507]
[1693680020909,6.84237549,1632.5,1632.4,2.4614507]
[1693680021331,6.20239741,1632.5,1632.4,2.4614507]
[1693680021623,7.77039741,1632.5,1632.4,2.4614507]
[1693680023345,9.04871527,1632.5,1632.4,2.4614507]
[1693680023491,10.21781995,1632.5,1632.4,2.4614507]
[1693680023831,9.04855669,1632.5,1632.4,2.4614507]
[1693680025290,10.21779935,1632.5,1632.4,2.4614507]
[1693680030363,11.81672217,1632.5,1632.4,2.4614507]
[1693680030948,7.63615031,1632.5,1632.4,2.4614507]
[1693680031153,6.46622627,1632.5,1632.4,5.54330474]
[1693680031349,5.18708801,1632.5,1632.4,5.54330474]
[1693680032755,6.46622627,1632.5,1632.4,4.40821735]
[1693680033072,5.18708801,1632.5,1632.4,4.40821735]
[1693680033208,6.46622627,1632.5,1632.4,4.40821735]
[1693680033408,5.18708801,1632.5,1632.4,4.40821735]
[1693680034036,6.46622627,1632.5,1632.4,4.40821735]
[1693680034445,6.46622627,1632.5,1632.4,3.76973112]
[1693680037765,7.63599698,1632.5,1632.4,3.76973112]
[1693680038621,6.06799698,1632.5,1632.4,3.76973112]
[1693680040272,4.92639382,1632.5,1632.4,3.76973112]
[1693680040565,7.05467546,1632.5,1632.4,3.76973112]
[1693680041232,6.06728972,1632.5,1632.4,3.76973112]
[1693680043571,7.63528972,1632.5,1632.4,0.68787708]
[1693680043804,12.14534741,1632.5,1632.4,0.68787708]
[1693680044774,10.86669138,1632.5,1632.4,0.68787708]
[1693680059551,12.43469138,1632.5,1632.4,0.68787708]
[1693680059761,13.86995892,1632.5,1632.4,0.68787708]
[1693680060314,12.30195892,1632.5,1632.4,0.68787708]